bitfinex-derivatives/quotes_SOLF0:USTF0_20250421
["timestamp","ask_amount","ask_price","bid_price","bid_amount"]
[1745257428585,11.83960462,134.76,134.75,0.05231253]
[1745257431991,7.42,134.76,134.75,0.05231253]
[1745257433190,11.85190435,134.76,134.75,0.05231253]
[1745257436192,11.85190435,134.76,134.7,597.042]
[1745257436193,7.4223,134.72,134.7,622.1193]
[1745257436593,7.4224,134.71,134.7,622.1193]
[1745257436791,7.4224,134.71,134.7,620.12]
[1745257437091,7.4224,134.71,134.7,587.62]
[1745257437293,7.423,134.7,134.69,0.05102843]
[1745257438193,11.86496157,134.7,134.69,0.05102843]
[1745257438893,4.44196157,134.7,134.69,0.05102843]
[1745257439592,11.86496157,134.7,134.69,0.05102843]
[1745257440390,4.44196157,134.7,134.69,0.05102843]
[1745257440793,7.4227,134.71,134.69,0.05102843]
[1745257441292,7.47834677,134.72,134.69,0.05102843]
[1745257441496,7.47834677,134.72,134.69,7.47412843]
[1745257441697,4.45528252,134.71,134.69,7.47412843]
[1745257442188,11.87778252,134.71,134.69,0.05102843]
[1745257442393,4.45528252,134.7,134.69,0.05102843]
[1745257442592,11.87828252,134.7,134.69,0.05102843]
[1745257443195,14.63899436,134.7,134.69,0.05102843]
[1745257444095,11.87828252,134.7,134.69,0.05102843]
[1745257444897,4.45528252,134.7,134.69,0.05102843]
[1745257445497,4.45528252,134.7,134.69,7.47452843]
[1745257445794,4.45528252,134.7,134.69,0.05102843]
[1745257446398,4.45528252,134.7,134.69,7.47452843]
[1745257447299,4.45528252,134.7,134.69,0.05102843]
[1745257448392,11.87828252,134.7,134.69,0.05102843]
[1745257449799,14.6499584,134.7,134.69,0.05102843]
[1745257450698,14.65106362,134.7,134.69,0.05102843]
[1745257451193,7.22806362,134.7,134.69,0.05102843]
[1745257451602,0.05614677,134.72,134.69,0.05102843]
[1745257451799,0.05614677,134.72,134.7,7.4226]
[1745257452000,0.05614677,134.72,134.71,32.46]
[1745257452195,2.82970184,134.72,134.71,32.46]
[1745257452996,2.82970184,134.72,134.71,39.8824]
[1745257453300,1.9618,134.8,134.71,50.96645673]
[1745257453499,10.1957025,134.79,134.71,638.78645673]
[1745257453691,2.7774025,134.78,134.71,638.78645673]
[1745257453895,2.7774025,134.77,134.71,638.78645673]
[1745257454096,171.83991836,134.84,134.71,638.78645673]
[1745257454097,137.39771836,134.84,134.76,18.50645673]
[1745257454293,2.78004699,134.83,134.77,32.46]
[1745257454497,0.04938635,134.81,134.78,7.4184]
[1745257454693,2.78004699,134.8,134.79,0.04940792]
[1745257455105,2.78004699,134.8,134.79,7.46740792]
[1745257455595,2.78004699,134.8,134.79,0.04940792]
[1745257455996,2.77923762,134.8,134.79,0.04940792]
[1745257456501,2.77923762,134.8,134.79,7.46740792]
[1745257457002,2.77923762,134.8,134.79,0.04940792]
[1745257457403,0.04938635,134.81,134.79,0.04940792]
[1745257457901,0.04938635,134.81,134.79,7.46710792]
[1745257458199,0.04938635,134.81,134.79,0.04940792]
[1745257458604,0.04938635,134.81,134.8,7.4175]
[1745257458902,7.415,134.85,134.79,587.72940792]
[1745257459101,2.77608194,134.84,134.79,587.72940792]
[1745257459307,137.54721836,134.89,134.79,587.68]
[1745257459506,2.77453484,134.88,134.79,587.68]
[1745257459705,7.4144,134.86,134.82,7.4159]
[1745257459903,2.82548534,134.85,134.83,32.44]
[1745257460102,0.05158968,134.85,134.83,32.44]
[1745257461903,7.4153,134.84,134.83,32.44]
[1745257462208,7.4153,134.84,134.79,587.68]
[1745257462209,2.77122114,134.84,134.79,587.68]
[1745257462405,7.4167,134.82,134.8,32.44]
[1745257462610,2.76980261,134.84,134.8,32.44]
[1745257462809,0.05158968,134.85,134.8,32.44]
[1745257463010,7.4156,134.84,134.81,7.4169]
[1745257463205,0.05158968,134.85,134.8,32.44]
[1745257463411,7.4153,134.84,134.81,7.47024281]
[1745257464208,4.39265568,134.83,134.81,0.05364281]
[1745257464611,4.39265568,134.82,134.81,7.47054281]
[1745257465812,7.46658968,134.85,134.81,7.47054281]
[1745257466708,4.39061968,134.84,134.81,7.47054281]
[1745257467010,4.39061968,134.84,134.81,0.05364281]
[1745257467206,7.15766251,134.84,134.81,0.05364281]
[1745257467410,4.39061968,134.83,134.81,0.05364281]
[1745257467611,7.4164,134.82,134.81,0.05364281]
[1745257467911,11.80701968,134.82,134.81,0.05364281]
[1745257468211,7.4169,134.81,134.8,32.44]
[1745257468612,11.80751968,134.81,134.8,32.44]
[1745257469210,4.39061968,134.81,134.8,32.44]
[1745257470213,0.05159122,134.82,134.8,32.44]
[1745257470413,0.05159122,134.82,134.8,39.8575]
[1745257470613,0.05159122,134.82,134.8,32.44]
[1745257470916,0.05159122,134.82,134.8,39.8572]
[1745257472015,0.05159122,134.82,134.81,7.4169]
[1745257474913,4.38550139,134.86,134.83,7.4156]
[1745257475217,135.44611836,134.88,134.84,32.44]
[1745257475619,4.38397725,134.87,134.84,32.44]
[1745257475819,4.38397725,134.87,134.86,7.4142]
[1745257476022,1.10686552,134.87,134.86,7.4142]
[1745257476416,0.05259628,134.87,134.86,7.4142]
[1745257477417,0.05259628,134.87,134.84,0.04837858]
[1745257477620,0.05259628,134.87,134.85,32.44]
[1745257478123,0.05259628,134.87,134.84,0.04837858]
[1745257478324,0.05259628,134.87,134.84,32.42837858]
[1745257478817,7.4147,134.85,134.84,32.42837858]
[1745257480727,7.4167,134.82,134.81,32.38]
[1745257481329,7.4161,134.83,134.81,32.38]
[1745257481829,0.04775729,134.83,134.81,32.43539094]
[1745257482726,7.46385729,134.83,134.81,32.43539094]
[1745257482927,0.04775729,134.83,134.81,39.85229094]
[1745257483328,0.04775729,134.83,134.81,32.43539094]
[1745257483931,7.46385729,134.83,134.81,32.43539094]
[1745257485231,7.4164,134.82,134.81,32.43539094]
[1745257491937,7.46395729,134.83,134.81,32.43539094]
[1745257493342,7.4164,134.82,134.81,32.43539094]
[1745257496348,10.19655653,134.82,134.81,32.43539094]
[1745257496948,2.78015653,134.82,134.81,32.43539094]
[1745257497350,2.78015653,134.82,134.81,0.05539094]
[1745257497551,2.78015653,134.82,134.76,32.38]
[1745257497747,4.73845653,134.81,134.76,32.38]
[1745257498047,7.4191,134.77,134.76,32.38]
[1745257498242,10.19925653,134.77,134.76,32.38]
[1745257500239,7.4213,134.73,134.72,587.34]
[1745257500548,10.19873769,134.73,134.72,619.72]
[1745257501049,2.77743769,134.73,134.72,619.72]
[1745257501444,0.05018766,134.74,134.72,619.72]
[1745257501646,0.05018766,134.74,134.73,7.4213]
[1745257501948,2.82638844,134.74,134.72,619.72]
[1745257502149,0.05018766,134.74,134.72,627.1416]
[1745257502451,0.05018766,134.74,134.72,619.72]
[1745257502646,7.47128766,134.74,134.72,619.72]
[1745257503445,7.4213,134.73,134.72,619.72]
[1745257503749,10.19500497,134.73,134.72,619.72]
[1745257504250,10.1933018,134.73,134.72,587.34]
[1745257504653,0.05018766,134.74,134.72,587.34]
[1745257505141,0.05018766,134.74,134.73,7.4213]
[1745257505546,135.44611836,134.79,134.72,589.4518]
[1745257505743,7.4192,134.77,134.74,7.4204]
[1745257505953,7.4192,134.77,134.75,32.4]
[1745257506651,7.46896095,134.77,134.75,32.45214165]
[1745257508454,7.4197,134.76,134.75,32.45214165]
[1745257508852,0.04976095,134.77,134.75,32.45214165]
[1745257509455,7.46916095,134.77,134.75,32.45214165]
[1745257510956,7.46916095,134.77,134.75,39.87224165]
[1745257511854,0.04976095,134.77,134.76,7.4197]
[1745257512152,2.77694991,134.83,134.76,18.45372617]
[1745257512359,10.1944594,134.82,134.8,7.4174]
[1745257512555,7.4167,134.82,134.8,39.7774]
[1745257512858,2.77815614,134.84,134.8,39.7774]
[1745257513058,2.77815614,134.83,134.8,32.36]
[1745257513255,0.05153465,134.83,134.81,0.04776688]
[1745257513454,0.05153465,134.83,134.82,7.4163]
[1745257517860,7.46763465,134.83,134.81,0.04776688]
[1745257518064,0.05153465,134.83,134.81,0.04776688]
[1745257518865,0.05153465,134.83,134.82,7.4164]
[1745257521363,0.05153465,134.83,134.82,25.87012617]
[1745257521564,2.78228409,134.89,134.85,7.4145]
[1745257521767,2.78228409,134.88,134.86,32.34]
[1745257522064,153.89984453,134.92,134.86,32.34]
[1745257522065,10.19588409,134.87,134.86,32.34]
[1745257522564,7.415,134.85,134.83,32.34]
[1745257522763,18.50853012,134.88,134.85,0.05463569]
[1745257522963,2.78131788,134.87,134.85,0.05463569]
[1745257523164,10.19551788,134.86,134.85,0.05463569]
[1745257527570,2.78131788,134.86,134.85,0.05463569]
[1745257527968,2.78131788,134.86,134.85,7.46933569]
[1745257528568,0.05480395,134.88,134.85,7.46933569]
[1745257528867,10.19609217,134.87,134.85,7.46933569]
[1745257529060,7.4137,134.87,134.85,7.46933569]
[1745257529768,7.4142,134.86,134.85,0.05463569]
[1745257530270,0.05480395,134.88,134.85,0.05463569]
[1745257530271,7.46790395,134.88,134.86,7.4141]
[1745257530571,0.05480395,134.88,134.87,32.34]
[1745257530868,0.05480395,134.88,134.87,39.7536]
[1745257531271,18.45372617,134.96,134.89,7.412]
[1745257531567,7.4106,134.93,134.87,32.34]
[1745257531762,2.78143648,134.92,134.87,32.34]
[1745257531963,7.4106,134.93,134.89,7.412]
[1745257532360,0.05034349,134.92,134.9,7.46878668]
[1745257532561,0.05034349,134.92,134.91,32.34]
[1745257533367,0.05034349,134.92,134.91,39.7514]
[1745257533970,6.3248,134.99,134.91,32.34]
[1745257534169,6.3248,134.99,134.92,2.1484]
[1745257534170,2.77869151,134.98,134.92,2.1484]
[1745257534470,2.77832501,134.98,134.92,2.1484]
[1745257535066,0.05426834,134.96,134.94,0.05164814]
[1745257535273,0.05426834,134.96,134.95,32.32]
[1745257536070,0.05426834,134.96,134.95,39.7292]
[1745257536872,18.45372617,135.04,134.95,32.32]
[1745257537176,7.4058,135.02,134.95,32.32]
[1745257537876,18.45372617,135.02,134.95,32.32]
[1745257538077,0.05097692,135.0,134.97,0.05331551]
[1745257538577,7.4075,134.99,134.97,0.05331551]
[1745257538774,0.05097692,135.0,134.97,0.05331551]
[1745257539175,7.4073,134.99,134.97,0.05331551]
[1745257540482,0.05097692,135.0,134.97,0.05331551]
[1745257540679,18.50470309,135.0,134.97,0.05331551]
[1745257540880,18.45372617,134.98,134.93,32.26]
[1745257541285,50.71372617,135.02,134.93,32.26]
[1745257541483,18.45372617,135.02,134.93,32.26]
[1745257541982,0.05585859,134.99,134.96,0.05057997]
[1745257542386,7.4085,134.97,134.96,0.05057997]
[1745257543188,0.05585859,134.99,134.96,0.05057997]
[1745257544187,7.4081,134.97,134.96,0.05057997]
[1745257546288,7.4078,134.98,134.96,0.05057997]
[1745257546793,7.4081,134.97,134.96,0.05057997]
[1745257548890,7.4078,134.98,134.96,0.05057997]
[1745257549188,0.05585859,134.99,134.96,0.05057997]
[1745257549393,7.4076,134.98,134.96,0.05057997]
[1745257549993,7.4081,134.97,134.96,0.05057997]
[1745257550395,0.05585859,134.99,134.96,0.05057997]
[1745257550696,0.05585859,134.99,134.98,7.4076]
[1745257552192,0.05585859,134.99,134.96,0.05057997]
[1745257552495,18.50958476,134.99,134.96,0.05057997]
[1745257552695,7.4081,134.97,134.96,0.05057997]
[1745257553195,18.45372617,134.98,134.89,4.0526]
[1745257553390,18.45372617,134.98,134.91,32.26]
[1745257553391,18.45372617,134.96,134.91,32.26]
[1745257553593,4.0994,134.97,134.91,32.26]
[1745257553789,7.4098,134.94,134.91,39.6711]
[1745257553991,4.0994,134.97,134.91,32.26]
[1745257554387,0.05555971,134.95,134.93,0.04807736]
[1745257555099,7.4098,134.94,134.93,0.04807736]
[1745257556790,21.22213553,134.94,134.88,619.5]
[1745257556993,2.77127504,134.93,134.88,619.5]
[1745257557396,18.45372617,134.94,134.88,32.26]
[1745257557599,2.77255113,134.93,134.88,32.26]
[1745257557799,2.77255113,134.92,134.88,32.26]
[1745257557994,7.4124,134.9,134.89,0.05010568]
[1745257558903,0.05056846,134.92,134.89,0.05010568]
[1745257559497,7.4117,134.91,134.89,0.05010568]
[1745257560404,0.05056846,134.92,134.89,7.46230568]
[1745257560796,7.4115,134.91,134.89,0.05010568]
[1745257561801,7.412,134.9,134.89,0.05010568]
[1745257563104,10.18886641,134.9,134.89,0.05010568]
[1745257563305,7.412,134.9,134.89,0.05010568]
[1745257563605,10.19055971,134.9,134.89,0.05010568]
[1745257563903,7.412,134.9,134.89,0.05010568]
[1745257565500,10.19446412,134.9,134.89,0.05010568]
[1745257565696,28.64819029,134.9,134.89,5.68e-06]
[1745257567202,10.19446412,134.9,134.89,5.68e-06]
[1745257567602,7.4151,134.85,134.82,7.4159]
[1745257567900,2.78246412,134.89,134.82,32.28]
[1745257568106,2.77953456,134.88,134.82,50.73372617]
[1745257568314,1.29049005,134.96,134.82,50.73372617]
[1745257568315,168.71644453,134.97,134.86,18.45372617]
[1745257568604,2.78235467,134.96,134.9,7.4116]
[1745257568799,7.45819732,134.93,134.9,0.04869293]
[1745257569000,0.04759732,134.93,134.9,0.04869293]
[1745257569208,0.04759732,134.93,134.91,7.411]
[1745257569503,0.04759732,134.93,134.9,0.04869293]
[1745257569504,2.83057002,134.93,134.9,0.04869293]
[1745257569705,7.45819732,134.93,134.9,7.46029293]
[1745257569904,7.45819732,134.93,134.9,0.04869293]
[1745257570501,0.04759732,134.93,134.9,0.04869293]
[1745257571204,10.19728491,134.92,134.9,0.04869293]
[1745257571507,7.4111,134.92,134.9,0.04869293]
[1745257571707,0.04759732,134.93,134.9,0.04869293]
[1745257572207,0.04759732,134.93,134.92,7.4109]
[1745257572404,2.78970533,134.95,134.92,32.22]
[1745257572603,2.79044637,135.0,134.96,7.4083]
[1745257572805,2.79044637,134.99,134.96,32.22]
[1745257573004,137.47291836,135.03,134.96,32.22]
[1745257573303,2.7914873,135.02,134.96,32.22]
[1745257573509,2.7914873,135.01,134.96,32.22]
[1745257573809,10.24778774,135.0,134.98,0.05611457]
[1745257574003,7.45630044,135.0,134.98,0.05611457]
[1745257574212,2.79333977,134.99,134.98,0.05611457]
[1745257574405,0.04950044,135.0,134.98,0.05611457]
[1745257574604,0.04950044,135.0,134.98,7.46341457]
[1745257574806,0.04950044,135.0,134.98,0.05611457]
[1745257575914,7.407,134.99,134.98,0.05611457]
[1745257576108,10.20080673,134.99,134.98,0.05611457]
[1745257576609,7.407,134.99,134.98,0.05611457]
[1745257576810,7.45620044,135.0,134.98,0.05611457]
[1745257577111,0.04950044,135.0,134.98,0.05611457]
[1745257577709,0.04950044,135.0,134.99,7.407]
[1745257578011,0.04950044,135.0,134.98,0.05611457]
[1745257579411,0.04950044,135.0,134.99,7.407]
[1745257579609,10.19740088,135.05,134.98,18.50984074]
[1745257579807,2.79330088,135.04,134.98,18.50984074]
[1745257580012,7.4041,135.05,135.02,7.4054]
[1745257580212,7.4041,135.05,135.02,39.6054]
[1745257580415,7.4034,135.06,135.02,32.2]
[1745257580612,7.4034,135.06,135.03,7.4044]
[1745257580815,0.05027566,135.05,135.03,0.05333578]
[1745257581114,18.45372617,135.07,135.02,32.2]
[1745257581313,0.04904483,135.05,135.03,0.04676998]
[1745257581614,10.19648415,135.04,135.03,0.04676998]
[1745257581911,10.19647063,135.04,135.03,0.04676998]
[1745257583314,7.4043,135.04,135.03,0.04676998]
[1745257587625,7.4062,135.01,134.99,32.2]
[1745257588325,7.4062,135.01,134.99,39.607]
[1745257588624,7.4062,135.01,134.99,32.2]
[1745257588824,7.4065,135.0,134.99,0.05321426]
[1745257589714,7.4083,134.97,134.91,605.45372617]
[1745257589923,2.78655031,135.01,134.96,7.4083]
[1745257590223,2.78655031,135.02,134.96,39.6083]
[1745257590428,7.4071,134.99,134.96,39.6083]
[1745257590620,7.4071,134.99,134.97,7.4081]
[1745257590925,7.46303091,134.99,134.97,7.45637629]
[1745257591129,7.46303091,134.99,134.97,0.04827629]
[1745257591430,7.4076,134.98,134.97,0.04827629]
[1745257594526,21.29627058,134.99,134.91,588.9861]
[1745257594827,18.45372617,134.97,134.91,628.5973]
[1745257595027,7.41,134.94,134.91,621.1861]
[1745257595428,7.41,134.94,134.91,628.5972]
[1745257595629,7.4107,134.93,134.91,621.23587993]
[1745257595922,7.4107,134.93,134.91,619.24977993]
[1745257596128,7.46597666,134.94,134.91,619.24977993]
[1745257596428,0.05597666,134.94,134.92,7.4107]
[1745257596920,0.05597666,134.94,134.91,619.24977993]
[1745257597129,0.05597666,134.94,134.92,7.4106]
[1745257598228,0.05597666,134.94,134.93,7.4103]
[1745257600929,4.0633,135.0,134.95,7.4089]
[1745257601228,2.78098414,135.0,134.95,39.5489]
[1745257601428,7.4078,134.98,134.95,39.5489]
[1745257601626,2.78098414,135.01,134.95,32.14]
[1745257601825,2.78098414,135.02,134.95,32.14]
[1745257602020,0.05697375,135.0,134.97,0.04788651]
[1745257602625,7.407,134.99,134.97,0.04788651]
[1745257602826,0.05697375,135.0,134.97,0.04788651]
[1745257603228,2.84126028,135.0,134.97,0.04788651]
[1745257603430,0.05697375,135.0,134.97,0.04788651]
[1745257603725,2.84126028,135.0,134.97,0.04788651]
[1745257603930,0.05697375,135.0,134.97,0.04788651]
[1745257604231,7.4076,134.98,134.97,0.04788651]
[1745257604922,0.05697375,135.0,134.97,0.04788651]
[1745257606328,0.05697375,135.0,134.98,7.4073]
[1745257607028,7.46357375,135.0,134.98,7.4073]
[1745257607624,0.05697375,135.0,134.98,7.4073]
[1745257608332,0.05697375,135.0,134.99,7.407]
[1745257608526,0.05697375,135.0,134.99,39.547]
[1745257610132,0.05697375,135.0,134.99,32.14]
[1745257611535,0.05697375,135.0,134.99,39.547]
[1745257613237,7.4045,135.04,135.01,7.4056]
[1745257613436,2.79982449,135.03,134.99,32.14]
[1745257613633,7.4045,135.04,135.01,7.4055]
[1745257613834,2.79970366,135.03,135.01,7.4055]
[1745257614133,7.4045,135.04,135.01,7.4055]
[1745257614433,0.0533648,135.03,135.02,7.4054]
[1745257614633,2.80177605,135.06,135.01,18.51024271]
[1745257614832,32.14,135.09,135.01,18.51024271]
[1745257615035,7.403,135.07,135.04,7.404]
[1745257615238,32.14,135.09,135.03,32.14]
[1745257615436,7.4024,135.08,135.05,7.4032]
[1745257615733,0.05686621,135.08,135.05,0.05148773]
[1745257615931,7.4029,135.07,135.05,7.45498773]
[1745257616127,0.05686621,135.08,135.05,7.45498773]
[1745257616840,7.45926621,135.08,135.05,7.45498773]
[1745257617438,7.4029,135.07,135.05,7.45498773]
[1745257617737,0.05686621,135.08,135.05,0.05148773]
[1745257618438,7.4029,135.07,135.05,0.05148773]
[1745257618736,0.05686621,135.08,135.05,0.05148773]
[1745257619639,7.4032,135.06,135.05,0.05148773]
[1745257619942,0.05686621,135.08,135.03,32.14]
[1745257620734,0.05686621,135.08,135.03,39.5447]
[1745257620936,0.05686621,135.08,135.04,0.0555899]
[1745257621937,7.4027,135.07,135.04,7.4595899]
[1745257622135,0.05686621,135.08,135.04,7.4595899]
[1745257622340,2.8073042,135.07,135.04,0.0555899]
[1745257622538,2.8073042,135.06,135.05,7.4037]
[1745257622839,2.80624308,135.06,135.05,7.4037]
[1745257623030,2.80624308,135.06,135.04,0.0555899]
[1745257623235,7.4036,135.06,135.04,7.4595899]
[1745257623738,7.4036,135.06,135.04,0.0555899]
[1745257624233,7.4029,135.07,135.05,7.4037]
[1745257624538,0.05686621,135.08,135.05,7.4037]
[1745257624837,0.05686621,135.08,135.04,0.0555899]
[1745257625029,0.05686621,135.08,135.04,4.3274899]
[1745257625538,7.45926621,135.08,135.05,7.4036]
[1745257625738,0.05686621,135.08,135.04,4.3274899]
[1745257626238,0.05686621,135.08,135.04,6.3224899]
[1745257626439,0.05686621,135.08,135.07,7.4026]
[1745257626638,2.0654,135.14,135.07,32.12]
[1745257626838,7.4007,135.11,135.08,7.4017]
[1745257627239,2.0654,135.14,135.07,32.12]
[1745257627439,18.45372617,135.12,135.07,32.12]
[1745257627742,18.45372617,135.1,135.04,32.12]
[1745257628039,10.20103082,135.09,135.08,0.05194162]
[1745257629440,2.79953082,135.09,135.04,32.12]
[1745257629639,2.79953082,135.08,135.04,32.12]
[1745257629939,2.79832869,135.07,135.04,32.12]
[1745257630140,7.4035,135.06,135.04,39.5241]
[1745257630640,7.45898172,135.06,135.04,39.57827627]
[1745257630842,7.45898172,135.06,135.04,32.17417627]
[1745257631041,0.05548172,135.06,135.04,32.17417627]
[1745257631438,0.05548172,135.06,135.04,39.57807627]
[1745257632235,0.05548172,135.06,135.05,7.4037]
[1745257632834,7.45888172,135.06,135.04,32.17417627]
[1745257633343,0.05548172,135.06,135.04,32.17417627]
[1745257634344,7.4037,135.05,135.04,32.17417627]
[1745257634542,7.4037,135.05,135.04,0.05417627]
[1745257635043,0.05548172,135.06,135.01,32.06]
[1745257635543,2.79612109,135.05,135.0,39.4663]
[1745257635746,0.05548172,135.06,135.0,39.4663]
[1745257635937,2.79612336,135.05,135.01,7.4058]
[1745257636142,0.05548172,135.06,135.02,0.05088639]
[1745257636343,7.4049,135.03,135.02,0.05088639]
[1745257640647,7.4045,135.04,135.02,0.05088639]
[1745257641347,2.79880762,135.05,135.02,0.05088639]
[1745257641550,0.05548172,135.06,135.02,0.05088639]
[1745257641551,0.05548172,135.06,135.05,7.4037]
[1745257641749,0.05548172,135.06,135.05,39.4637]
[1745257643954,7.4018,135.09,135.07,7.4026]
[1745257644142,7.4018,135.09,135.05,32.06]
[1745257644449,7.4018,135.09,135.06,7.4029]
[1745257645148,7.4018,135.09,135.06,0.0479308]
[1745257645454,7.4022,135.08,135.06,0.0479308]
[1745257646049,0.05124688,135.09,135.06,0.0479308]
[1745257646252,7.45304688,135.09,135.06,7.4508308]
[1745257646553,0.05124688,135.09,135.06,0.0479308]
[1745257646753,7.45304688,135.09,135.06,7.4508308]
[1745257647155,0.05124688,135.09,135.07,7.4024]
[1745257648055,0.05124688,135.09,135.08,7.4021]
[1745257648257,2.85543849,135.09,135.06,0.0479308]
[1745257648456,0.05124688,135.09,135.07,7.4024]
[1745257649653,0.05124688,135.09,135.08,7.4021]
[1745257649858,20.53032617,135.16,135.06,18.50165697]
[1745257650058,20.53032617,135.16,135.06,18.45372617]
[1745257650059,2.80562216,135.14,135.06,18.45372617]
[1745257650358,2.80562216,135.13,135.06,18.45372617]
[1745257650657,2.80562216,135.12,135.1,7.4006]
[1745257650859,2.80562216,135.11,135.1,39.4606]
[1745257651062,2.80562216,135.11,135.1,39.51660871]
[1745257651759,0.05401317,135.12,135.11,7.4004]
[1745257652259,0.05401317,135.12,135.1,32.11600871]
[1745257652659,7.4004,135.11,135.1,0.05600871]
[1745257652962,18.50773934,135.12,135.07,32.04]
[1745257653158,18.45372617,135.1,135.05,32.04]
[1745257653456,18.45372617,135.1,135.03,586.28]
[1745257653656,7.4057,135.02,135.0,32.04]
[1745257653852,18.45372617,135.04,134.98,4.0208]
[1745257654056,18.45372617,135.04,134.97,32.04]
[1745257654258,0.05574185,135.02,135.0,0.05111404]
[1745257654453,7.406,135.01,135.0,0.05111404]
[1745257654863,0.05574185,135.02,135.0,0.05111404]
[1745257656167,7.4059,135.01,135.0,0.05111404]
[1745257656965,7.46134185,135.02,135.0,0.05111404]
[1745257657866,0.05574185,135.02,135.0,0.05111404]
[1745257658069,18.45372617,135.08,135.01,32.06]
[1745257658867,32.06,135.09,135.01,32.06]
[1745257659162,18.45372617,135.1,135.01,50.51372617]
[1745257659467,0.04996307,135.06,135.04,0.04812889]
[1745257659667,135.44611836,135.14,135.05,32.06]
[1745257659868,7.4008,135.11,135.08,7.402]
[1745257660270,135.44611836,135.14,135.05,32.06]
[1745257660473,135.44611836,135.14,135.08,7.4018]
[1745257660671,135.44611836,135.14,135.06,2.0268]
[1745257660970,7.4004,135.11,135.1,0.05396353]
[1745257663069,7.4029,135.07,135.05,32.06]
[1745257663269,164.88823813,135.14,135.05,32.06]
[1745257663570,7.4032,135.06,135.05,32.06]
[1745257664271,0.05272016,135.07,135.05,32.06]
[1745257664467,135.44611836,135.13,135.05,32.06]
[1745257664671,7.4591199,135.07,135.05,32.11221608]
[1745257664970,7.45449355,135.07,135.05,32.11221608]
[1745257665273,0.05179355,135.07,135.05,39.51591608]
[1745257665974,7.45439355,135.07,135.05,32.11221608]
[1745257666162,0.05179355,135.07,135.05,32.11221608]
[1745257666869,7.45469355,135.07,135.05,32.11221608]
[1745257667071,2.80639393,135.06,135.05,32.11221608]
[1745257667371,7.45469355,135.07,135.05,32.11221608]
[1745257668170,7.45469355,135.07,135.05,39.51591608]
[1745257668375,0.05179355,135.07,135.05,32.11221608]
[1745257669473,0.05179355,135.07,135.05,39.51571608]
[1745257669676,0.05179355,135.07,135.05,32.11221608]
[1745257670675,0.05179355,135.07,135.06,7.4032]
[1745257672681,0.05179355,135.07,135.05,32.11221608]
[1745257673082,0.05179355,135.07,135.05,39.51591608]
[1745257673584,0.05179355,135.07,135.05,32.11221608]
[1745257673885,0.05179355,135.07,135.06,7.4032]
[1745257674379,0.05179355,135.07,135.05,39.51561608]
[1745257676379,0.05179355,135.07,135.05,32.11221608]
[1745257676583,2.80590041,135.06,135.05,32.11221608]
[1745257677188,0.05179355,135.07,135.05,32.11221608]
[1745257677382,7.45449355,135.07,135.05,39.51571608]
[1745257677688,2.80589607,135.06,135.05,0.05221608]
[1745257678186,10.20909607,135.06,135.05,0.05221608]
[1745257680289,7.4048,135.03,135.02,31.98]
[1745257680484,2.80582657,135.03,134.96,588.2919]
[1745257680690,6.2281,135.05,134.97,31.98]
[1745257680990,7.4065,135.0,134.98,7.4071]
[1745257681184,6.2281,135.05,134.97,31.98]
[1745257681391,7.4057,135.02,134.99,7.4067]
[1745257681590,2.80594231,135.01,135.0,0.04774707]
[1745257681890,10.21184231,135.01,135.0,0.04774707]
[1745257682091,2.80594231,135.01,135.0,0.04774707]
[1745257682289,0.05257031,135.02,135.0,0.04774707]
[1745257682789,2.80513684,135.01,135.0,0.04774707]
[1745257683090,0.05257031,135.02,135.0,0.04774707]
[1745257683292,7.45817031,135.02,135.0,0.04774707]
[1745257683486,2.80486432,135.01,135.0,0.04774707]
[1745257683688,7.4059,135.01,135.0,0.04774707]
[1745257683989,10.21076432,135.01,135.0,0.04774707]
[1745257684793,2.80486432,135.01,135.0,0.04774707]
[1745257686691,7.45827031,135.02,135.0,0.04774707]
[1745257687598,7.4059,135.01,135.0,0.04774707]
[1745257687896,10.20865964,135.01,135.0,0.04774707]
[1745257688395,7.45817031,135.02,135.0,0.04774707]
[1745257689095,7.4059,135.01,135.0,0.04774707]
[1745257689296,0.05257031,135.02,135.0,0.04774707]
[1745257689796,7.4059,135.01,135.0,0.04774707]
[1745257689988,0.05257031,135.02,135.0,0.04774707]
[1745257690297,7.4059,135.01,135.0,0.04774707]
[1745257692590,0.05257031,135.02,135.0,0.04774707]
[1745257692791,2.384e-05,135.02,135.01,31.92]